Cogmind - Beta 13 @@@ ROGUE MODE // 2024.04.21 @ 17:27:08 Player: Zaros426 Result: Destroyed by X-77 Beamer with Gatling Laser Performance ------------- Evolutions (5) 2500 Regions Visited (5) 1000 Robots Destroyed (29) 145 Value Destroyed (897) 897 Prototype IDs (12) 240 Alien Tech Used (0) 0 Bonus (361) 361 TOTAL SCORE: 5143 Bonus ------- Entered DSFs 500 Friendly Fire -139 Cogmind --------- Core Integrity 0/1000 Matter 235/300 Energy 9/100 System Corruption 0% Temperature Cool (24) Movement Walking (90) Location -5/DSF Parts ------- > --- POWER (2) -------- (None) > --- PROPULSION (4) --- Advanced VSS Leg Advanced VSS Leg > --- UTILITY (8) ------ Large Storage Unit > --- WEAPON (3) ------- Makeshift Spear > --- INVENTORY (15) --- Heavy Treads Heavy Treads Heavy Treads Heavy Treads Heavy Treads Advanced VSS Leg Improved Arc Projector Particle Gun Battle Rifle Peak State ------------ > --- POWER ------------ Micro Nuclear Core > --- PROPULSION ------- Spiked Treads Spiked Treads Cargo Legs > --- UTILITY ---------- Large Storage Unit Structural Scanner Advanced Terrain Scan Processor Makeshift Light Armor Plating Makeshift Light Armor Plating System Shield > --- WEAPON ----------- Long-range Proton Cannon Barrage Gun Makeshift Spear > --- INVENTORY -------- Improved Treads Improved Treads Improved Treads Improved Treads Aluminum Leg Improved Arc Projector Particle Gun Variable Charge Gun Long-range Proton Cannon Battle Rifle Battle Cannon Improved Plasma Cutter Piercing Trap [Rating: 58] Favorites ----------- Power Light Nuclear Core Engine Light Ion Engine Power Core Light Nuclear Core Propulsion Cargo Legs Treads Light Treads Leg Cargo Legs Utility Scrap Shield Device Seismic Detector Storage Large Storage Unit Processor Advanced Terrain Scan Processor Hackware System Shield Protection Scrap Shield Weapon Makeshift Spear Energy Gun Particle Gun Energy Cannon Long-range Proton Cannon Ballistic Gun Barrage Gun Ballistic Cannon Battle Cannon Launcher Subdweller Shrapnel Launcher Piercing Weapon Makeshift Spear Build | -11 -10 -10 -7 -5 -5 ------- Run | Yrd Mat Sub Rec Fac DSF Slots Evolved 10 | . . . . 10 . Power 1 | . . . . 1 . Propulsion 2 | . . . . 2 . Utility 6 | . . . . 6 . Weapon 1 | . . . . 1 . Parts Attached 45 | 7 4 17 2 6 9 Power 5 | 1 1 2 1 . . Engine 3 | 1 . 2 . . . Core 2 | . 1 . 1 . . Reactor . | . . . . . . Propulsion 16 | 2 . 5 . 2 7 Treads 8 | . . 4 . 2 2 Leg 8 | 2 . 1 . . 5 Wheel . | . . . . . . Hover . | . . . . . . Flight . | . . . . . . Utility 15 | 3 2 4 1 4 1 Device 3 | 2 . . . 1 . Storage 5 | 1 2 1 . . 1 Processor 1 | . . . . 1 . Hackware 1 | . . . . 1 . Protection 5 | . . 3 1 1 . Artifact . | . . . . . . Weapon 9 | 1 1 6 . . 1 Energy Gun 1 | . . 1 . . . Energy Cannon 1 | . . . . . 1 Ballistic Gun 2 | 1 . 1 . . . Ballistic Cannon 1 | . . 1 . . . Launcher 2 | . 1 1 . . . Special Weapon . | . . . . . . Impact Weapon . | . . . . . . Slashing Weapon . | . . . . . . Piercing Weapon 2 | . . 2 . . . Special Melee Weapon . | . . . . . . Unidentified Prototypes . | . . . . . . Parts Lost 22 | . . 6 1 . 15 Power 3 | . . 2 . . 1 Propulsion 9 | . . 1 . . 8 Utility 7 | . . 2 1 . 4 Weapon 3 | . . 1 . . 2 Highest Loss Streak 12 | . . 3 1 . 12 To Critical Strikes . | . . . . . . Average Slot Usage (%) 70 | . 97 70 62 59 48 Engine 3 | . 1 4 . . . Core 5 | . 12 4 7 5 2 Treads 9 | . . 12 . 10 6 Leg 8 | . 28 5 11 5 6 Device 1 | . 14 . . 4 3 Storage 7 | . 14 5 11 5 4 Protection 9 | . . 11 11 10 7 Energy Gun 2 | . . 3 . . . Ballistic Gun 4 | . 14 2 11 5 2 Launcher 8 | . 11 10 . . . Piercing Weapon 7 | . . 8 11 5 5 Naked Turns . | . . . . . . Heaviest Build 51 | 13 31 51 49 40 49 Greatest Support 55 | 20 20 55 55 55 55 Greatest Overweight (x) 3 | . 1 . . . 3 Average Overweight (x) . | . . . . . . Largest Inventory Capacity 15 | 8 15 15 15 15 15 Average Capacity 11 | 7 14 10 15 15 14 Most Carried 15 | 4 15 15 15 13 15 Average Carried 10 | 1 9 9 14 10 11 Final Capacity 15 | 8 15 15 15 15 15 Final Carried 15 | 4 14 15 14 12 14 Class Distribution -------------------- 95% | Mutant 4% | Derelict-Mutant Dominant Class ---------------- Mutant | -10/Materials Mutant | -10/Subcaves Mutant | -7/Recycling Derelict-Mutant | -5/Factory Derelict-Mutant | -5/DSF Resources | -11 -10 -10 -7 -5 -5 ----------- Run | Yrd Mat Sub Rec Fac DSF Matter Collected 1133 | 253 177 653 30 . 20 Remotely . | . . . . . . Salvage Created 793 | 34 261 393 105 . . Parts 49 | 6 11 25 7 . . Haulers Intercepted . | . . . . . . Recyclers Shooed 2 | 1 1 . . . . Parts Field Recycled . | . . . . . . Retrieved Matter . | . . . . . . Parts Self-Destructed 18 | . . 18 . . . Prevented . | . . . . . . Kills | -11 -10 -10 -7 -5 -5 ------- Run | Yrd Mat Sub Rec Fac DSF Combat Hostiles Destroyed 24 | . 7 15 2 . . Melee 4 | . . 2 2 . . Guns 6 | . 3 3 . . . AOE 14 | . 4 10 . . . Classes Destroyed 9 | 1 2 5 1 . . Tunneler 3 | 2 1 . . . . Watcher 1 | . 1 . . . . Swarmer 4 | . . 4 . . . Grunt 7 | . 7 . . . . Sentry 2 | . . 1 1 . . Programmer 1 | . . . 1 . . Artisan 1 | . . 1 . . . Subdweller 10 | . . 10 . . . Guerrilla 1 | . . 1 . . . Best Kill Streak 4 | 2 3 4 1 . . Combat Bots Only 4 | . 2 4 1 . . Max Kills in Single Turn 2 | 1 2 2 1 . . Gunslinging . | . . . . . . Exploded 2 | . 1 2 . . . Melee 1 | . . 1 1 . . Uniques/NPCs Destroyed . | . . . . . . Combat | -11 -10 -10 -7 -5 -5 -------- Run | Yrd Mat Sub Rec Fac DSF Hostile Shots Fired 507 | . 16 79 73 . 339 Missed 192 | . 4 28 24 . 136 Damage Taken 5249 | . 183 1138 489 . 3439 Core 1214 | . 18 107 86 . 1003 Absorbed by Shields 40 | . . . . . 40 Core Remaining (%) 57 | 100 . . 15 . . Volleys Fired 108 | 9 17 80 . . 2 Largest 1 | 1 1 1 . . 1 Hottest 81 | 20 30 65 . . 81 Shots Fired 107 | 9 17 79 . . 2 Gun 59 | 9 11 39 . . . Cannon 2 | . . . . . 2 Launcher 46 | . 6 40 . . . Special . | . . . . . . Kinetic 37 | 9 11 17 . . . Thermal 32 | . . 32 . . . Explosive 36 | . 6 30 . . . Electromagnetic 2 | . . . . . 2 Robot Hit Streak 10 | 2 6 10 . . . Robot Miss Streak 5 | 5 1 2 . . 2 Penetration Max . | . . . . . . Secondary Targets . | . . . . . . Shots Hit Robots 58 | 3 10 39 6 . . Core Hits 55 | 2 20 31 2 . . Critical Kills . | . . . . . . Critical Parts Destroyed . | . . . . . . Critical Strikes 2 | . . 1 1 . . Burn 1 | . . 1 . . . Impale 1 | . . . 1 . . Melee Attacks 45 | . . 27 14 4 . Impact . | . . . . . . Slashing . | . . . . . . Piercing 45 | . . 27 14 4 . Sneak Attacks . | . . . . . . Combat Hostiles . | . . . . . . Follow-up Attacks . | . . . . . . Damage Inflicted 2247 | 35 418 1607 187 . . Guns 627 | 35 123 469 . . . Cannons . | . . . . . . Explosions 1342 | . 295 1047 . . . Melee 278 | . . 91 187 . . Ramming . | . . . . . . Kinetic 660 | 35 123 502 . . . Thermal 402 | . . 402 . . . Explosive 907 | . 295 612 . . . Electromagnetic . | . . . . . . Impact . | . . . . . . Slashing . | . . . . . . Piercing 278 | . . 91 187 . . Highest Corruption 1 | . . . 1 . . Average Corruption 1 | . . . 1 . . Corruption Purged . | . . . . . . Corruption Blocked . | . . . . . . Overload Shots . | . . . . . . Overflow Damage 41 | . . 8 33 . . Projectiles . | . . . . . . Explosions 8 | . . 8 . . . Melee 33 | . . . 33 . . Knockbacks . | . . . . . . Impact . | . . . . . . Kinetic . | . . . . . . Secondary . | . . . . . . Self-Inflicted Damage 226 | . 26 200 . . . Shots 10 | . 1 9 . . . Rammed . | . . . . . . Targets Rammed . | . . . . . . Kicked . | . . . . . . Crushed . | . . . . . . Highest Temperature 273 | . 3 273 2 . 88 Average Temperature 66 | . 3 97 2 . 31 Received Heat Transfer 1953 | . 90 522 78 . 1263 Siege Activations . | . . . . . . Robots Corrupted . | . . . . . . Combat Hostiles . | . . . . . . Parts Fried . | . . . . . . Impact Corruptions . | . . . . . . Robots Melted . | . . . . . . Combat Hostiles . | . . . . . . Parts Melted 1 | . . 1 . . . Heat Transferred 1036 | . . 1036 . . . Parts Sabotaged . | . . . . . . Parts Stolen . | . . . . . . Parts Stripped . | . . . . . . Power Chain Reactions . | . . . . . . Alert | -11 -10 -10 -7 -5 -5 ------- Run | Yrd Mat Sub Rec Fac DSF Peak Influence 246 | 10 246 . 36 10 22 Initial 8 | . 6 . . 8 7 Average 41 | 3 105 . 9 8 6 Maximum Alert Level 1 | . 1 . . . . Low Security (%) 94 | 100 82 . 100 100 100 Level 1 5 | . 17 . . . . Level 2 . | . . . . . . Level 3 . | . . . . . . Level 4 . | . . . . . . Level 5 . | . . . . . . High Security . | . . . . . . Max Security . | . . . . . . Squads Dispatched 2 | . 1 . . . 1 Investigation 1 | . 1 . . . . Extermination . | . . . . . . Reinforcement 1 | . . . . . 1 Assault . | . . . . . . Garrison . | . . . . . . Intercept . | . . . . . . Searches Triggered . | . . . . . . Construction Impeded . | . . . . . . Haulers Reinforced . | . . . . . . Active Scanning Responses . | . . . . . . Cargo Convoy Interrupts . | . . . . . . Stealth | -11 -10 -10 -7 -5 -5 --------- Run | Yrd Mat Sub Rec Fac DSF Distress Signals . | . . . . . . Communications Jammed . | . . . . . . Distress Signals . | . . . . . . Times Spotted 48 | . 10 23 5 . 10 Peak Tracking Total 7 | . 2 4 4 . 7 Tactical Retreats 4 | . . 2 . . 2 Traps | -11 -10 -10 -7 -5 -5 ------- Run | Yrd Mat Sub Rec Fac DSF Traps Triggered 2 | . 1 . . . 1 Indirectly . | . . . . . . Trap Hack Attempts . | . . . . . . Triggered . | . . . . . . Disarmed . | . . . . . . Reprogrammed . | . . . . . . Reused 1 | . . . . . 1 Traps Extracted . | . . . . . . Installed 1 | . . . . . 1 Triggered 1 | . . . . . 1 Most Traps Carried 1 | . . 1 1 1 1 Machines | -11 -10 -10 -7 -5 -5 ---------- Run | Yrd Mat Sub Rec Fac DSF Machines Disabled 2 | . 1 1 . . . Max in Single Turn 1 | . 1 1 . . . Machines Repaired . | . . . . . . Machines Dismantled . | . . . . . . Machines Sabotaged . | . . . . . . Overloaded Fab Kills . | . . . . . . Hacking | -11 -10 -10 -7 -5 -5 --------- Run | Yrd Mat Sub Rec Fac DSF Machines Accessed 11 | . 1 1 6 3 . Terminals 7 | . 1 . 5 1 . Fabricators . | . . . . . . Repair Stations 1 | . . . . 1 . Recycling Units 1 | . . . 1 . . Scanalyzers 1 | . . . . 1 . Garrison Access . | . . . . . . Total Hacks 37 | . 3 9 12 13 . Successful 21 | . 2 9 3 7 . Failed 16 | . 1 . 9 6 . Catastrophic 1 | . . . 1 . . Database Lockouts . | . . . . . . Manual 4 | . 2 . 2 . . Terminals 13 | . 3 . 9 1 . Fabricators . | . . . . . . Repair Stations 3 | . . . . 3 . Recycling Units 3 | . . . 3 . . Scanalyzers 9 | . . . . 9 . Garrison Access . | . . . . . . Terminal Hacks 15 | . 2 9 3 1 . Record 9 | . . 8 1 . . Robot Schematic 1 | . . . 1 . . Robot Analysis 1 | . 1 . . . . Prototype ID Bank 1 | . 1 . . . . Open DSF 1 | . . . . 1 . Dispatch Records 1 | . . . 1 . . Derelict Proto ID Bank 1 | . . 1 . . . Fabricator Hacks . | . . . . . . Repair Station Hacks . | . . . . . . Recycling Unit Hacks . | . . . . . . Scanalyzer 6 | . . . . 6 . Insert Component 3 | . . . . 3 . Analyze 3 | . . . . 3 . Garrison Access Hacks . | . . . . . . Unauthorized Hacks . | . . . . . . Terminals . | . . . . . . Fabricators . | . . . . . . Repair Stations . | . . . . . . Recycling Units . | . . . . . . Scanalyzers . | . . . . . . Garrison Access . | . . . . . . Data Cores Recovered . | . . . . . . Used . | . . . . . . Hacking Detections 8 | . 1 . 5 2 . Full Trace Events . | . . . . . . Feedback Events . | . . . . . . Feedback Blocked . | . . . . . . Robot Schematics Acquired 1 | . . . 1 . . Robots Built . | . . . . . . Authchips . | . . . . . . Time . | . . . . . . Total Robot Build Rating . | . . . . . . Part Schematics Acquired 3 | . . . . 3 . Parts Built . | . . . . . . Authchips . | . . . . . . Time . | . . . . . . Total Part Build Rating . | . . . . . . Parts Repaired . | . . . . . . Time . | . . . . . . Parts Recycled . | . . . . . . Recycled Matter . | . . . . . . Retrieved Matter . | . . . . . . Retrieved Components . | . . . . . . Parts Scanalyzed 3 | . . . . 3 . Part Schematics Acquired 3 | . . . . 3 . Parts Damaged . | . . . . . . Bothacking | -11 -10 -10 -7 -5 -5 ------------ Run | Yrd Mat Sub Rec Fac DSF Used RIF Installer . | . . . . . . Robots Hacked . | . . . . . . Non-combat . | . . . . . . Combat . | . . . . . . Robot Hacks Applied . | . . . . . . Relay Couplers Released . | . . . . . . Fabnet Peak Effective % . | . . . . . . Robots Rewired . | . . . . . . Allies Hacked . | . . . . . . Hacks Repelled . | . . . . . . Allies | -11 -10 -10 -7 -5 -5 -------- Run | Yrd Mat Sub Rec Fac DSF Total Allies . | . . . . . . Largest Group . | . . . . . . Highest-Rated Group . | . . . . . . Highest-Rated Ally . | . . . . . . Total Orders . | . . . . . . Ally Attacks . | . . . . . . Total Damage . | . . . . . . Kills . | . . . . . . Allies Corrupted . | . . . . . . Allies Melted . | . . . . . . Intel | -11 -10 -10 -7 -5 -5 ------- Run | Yrd Mat Sub Rec Fac DSF Robot Analysis Total 1 | . 1 . . . . Derelict Logs Recovered 2 | . . 2 . . . Drone Launches . | . . . . . . Drone Recoveries . | . . . . . . Exploration | -11 -10 -10 -7 -5 -5 ------------- Run | Yrd Mat Sub Rec Fac DSF Turns Passed 5739 | 97 599 4008 672 134 229 Spaces Moved 3691 | 57 289 2614 484 90 157 Core 21 | 5 . . . . 16 Treads 1036 | . . 1036 . . . Legs 2634 | 52 289 1578 484 90 141 Wheels . | . . . . . . Hover . | . . . . . . Flight . | . . . . . . Fastest Speed 50 | 50 120 130 130 130 50 Average Speed 142 | 113 188 141 130 130 119 Slowest Speed 200 | 120 190 160 130 130 200 Overloaded Moves . | . . . . . . Propulsion Burnouts . | . . . . . . Robots Hopped . | . . . . . . Cave-ins Triggered . | . . . . . . Exploration Rate (%) 51 | 4 29 92 96 3 82 Regions Visited 5 Branch Regions 2 Pre-discovered Areas 1 | . . 1 . . . Known Exits Taken 1 | . . . . 1 . Unknown Exits Taken 4 | 1 1 1 1 . . Scrap Searched 10 | . . 10 . . . Spaces Dug 55 | . 5 44 5 1 . Terrain Destroyed 304 | . 40 258 5 1 . Melee 11 | . . 5 5 1 . Projectile . | . . . . . . AOE 293 | . 40 253 . . . Terrain Rammed . | . . . . . . Walls Destroyed . | . . . . . . Machines Disabled . | . . . . . . Actions | -11 -10 -10 -7 -5 -5 --------- Run | Yrd Mat Sub Rec Fac DSF Total 4024 | 76 325 2813 512 102 196 Wait 52 | . 5 22 11 . 14 Move 3686 | 56 288 2613 483 89 157 Hop . | . . . . . . Pick Up 48 | 4 9 22 1 3 9 Fast Attach 20 | 6 1 6 1 1 5 Attach 14 | . . 4 1 5 4 Detach 1 | . . 1 . . . Swap 11 | 1 3 7 . . . Drop 30 | . 2 24 1 . 3 Fire 108 | 9 17 80 . . 2 Melee 45 | . . 27 14 4 . Ram . | . . . . . . Kick . | . . . . . . Crush . | . . . . . . Escape Stasis 1 | . . . . . 1 Rewire . | . . . . . . Trap 1 | . . . . . 1 Miscellaneous 7 | . . 7 . . . Route ------- -11/Scrapyard -10/Materials (discovered 2 exits: [*Min] / *Sub) -10/Subcaves (discovered 3 exits: [*Mat x2] / *Rec) -7/Recycling -5/Factory -5/DSF (discovered 1 exit: [*Fac]) History --------- Turn | Location | Event 3 | -11/Scrapyard | Discovered new exit (range 15) 98 | -11/Scrapyard | Entered Materials 315 | -10/Materials | Discovered new exit (range 15) 317 | -10/Materials | Build established: Mutant 644 | -10/Materials | Discovered new exit (range 9) 697 | -10/Materials | Entered Subcaves 785 | -10/Subcaves | Shifting Twisted Machinery released Scrap Shield 1250 | -10/Subcaves | Discovered new exit (range 8) 1320 | -10/Subcaves | A swath of the cavern ceiling suddenly collapsed 1502 | -10/Subcaves | Ambushed by angry Subdweller bent on revenge 1507 | -10/Subcaves | Ambushed by Subdweller buried in earth 1741 | -10/Subcaves | Lost 3 parts (1n1u1w) 1977 | -10/Subcaves | Shifting Twisted Machinery released Battle Cannon 2039 | -10/Subcaves | Discovered new exit (range 13) 2533 | -10/Subcaves | Visited 4L-MR0's lab 2536 | -10/Subcaves | Learned location of Zion (-6) 2559 | -10/Subcaves | Found Cargo Legs 2560 | -10/Subcaves | Attached Cargo Legs, gained temporary slots: Utility x2 3136 | -10/Subcaves | Shifting Twisted Machinery released Scrap Shield 3141 | -10/Subcaves | Shifting Twisted Machinery released Slug Cannon 3408 | -10/Subcaves | Shifting Twisted Machinery released Mak. Axe 3421 | -10/Subcaves | Shifting Twisted Machinery released Sub. Machine Gun 3808 | -10/Subcaves | Discovered new exit (range 15) 3871 | -10/Subcaves | Disturbed a concealed Subdweller 3885 | -10/Subcaves | Ambushed by Subdweller buried in earth 4021 | -10/Subcaves | Learned Materials emergency access door positions 4705 | -10/Subcaves | Entered Recycling 5069 | -7/Recycling | Core integrity fell below 50% 5224 | -7/Recycling | Discovered new exit (range 16) 5370 | -7/Recycling | Core integrity fell below 20% 5377 | -7/Recycling | Entered Factory 5377 | -5/Factory | Evolved 10 slots: Power x1, Propulsion x2, Utility x6, Weapon x1 5511 | -5/Factory | Identified exit to DSF 5511 | -5/Factory | Entered DSF 5554 | -5/DSF | Additional patrols routed to DSF 5640 | -5/DSF | Discovered new exit (range 16) 5677 | -5/DSF | Core integrity fell below 50% 5703 | -5/DSF | Lost 12 parts (1p5n4u2w) 5717 | -5/DSF | Core integrity fell below 20% 5740 | -5/DSF | Destroyed by X-77 Beamer with Gatling Laser Last Messages --------------- 05673_ Acquired 15 matter. 05673_ Critical hit (Burn: +37). 05673_ Acquired 5 matter. 05674_ Knocked back. 05680_ Acquired Adv. VSS Leg. 05700_ Acquired Hvy. Treads. 05704_ Adv. VSS Leg destroyed. 05706_ Acquired Hvy. Treads. 05707_ Dropped Imp. Treads. 05708_ Acquired Hvy. Treads. 05714_ Adv. VSS Leg destroyed. 05716_ Knocked back. 05717_ Critical hit (Burn: +37). 05717_ Adv. VSS Leg destroyed. 05718_ Triggered Stasis Trap. 05718_ A bubble of rippling energy engulfs the area. 05718_ Field strength at 85. 05719_ Field strength at 47. 05720_ Knocked back. 05729_ Stasis field depleted. Map ----- +----------------------------------------------------+ | #????????## ##?????????????????????? | | #????????]] ?????????????????????? | | ?????????] ??????????????????????? | | ##???????] ??????????????????????? | | ###?????### ###????????????????????? | | ##?????#== !!#????????????????????? | | ##?????#== !!#????????????????????? | | ########== !!##?#############?????? | | ########### ##################?????? | | # #!!!### ### " ## ##?????? | | # #!!!## ## " ==## ##?????? | | = [] % ^^ !!##?????? | | |%] ^ !!##?????? | | % = % !!##?????? | | #===#===## "#!!!#!!!##% ==##?????? | | #===#===### ###!!!"!!!## ==##?????? | | ########### ############ ####?????? | | =########!! !!##????##|| ]###?????? | | =##?????#!! !!##????##|| ##??????? | | =##????##!! !!##????##|H ##??????? | | ###????#### ####????#### ###??????? | | ##????## ##????##]] x/##??????? | | ######## ########]] /##??????? | | ######### ########## ####?????? | | ##==#===### ###|||# ### ######???? | | ##==#===### ###|||# ##@ ""#####??? | | """""##??? | | ""##"##??? | | ##==#===# # # ##"""""#####??? | | ######### #########"""""##?????? | | ###########"##############"#####?????? | | ##?????###########?????###"#####?????? | | #?????????####??????????##""#????????? | | ????????????????????????#####????????? | | ?????????????????????????####????????? | | ?????????????????????????????????????? | | ?????????????????????????????????????? | | ?????????????????????????????????????? | | | | | | | | | | | | | | | | | | | | | | | | | +----------------------------------------------------+ Best States ------------- Heat Dissipation 40 Energy Generation 15 Energy Capacity 250 Matter Stores 300 Matter Capacity 300 Sight Range 16 Terrain Scan Range 16 Terrain Scan Density 210 Armor Coverage 800 Evasion (%) 55 Recoil Reduction 2 Defensive Hacking 10 Item Schematics ----------------- Imp. Treads | -5/Factory | Scanalyzed Particle Gun | -5/Factory | Scanalyzed Aluminum Leg | -5/Factory | Scanalyzed Robot Schematics ------------------ A-02 Transporter | -7/Recycling | Hacked Fabricated ------------ Nothing Alien Tech Used ----------------- None Achievements -------------- None Challenges ------------ None Game ------ Seed CatalystSalvageBroadsword Manual? 0 Play Time 00:57:00 Cumulative 64.6 hours Start 2024.04.21 @ 16:31:15 End 2024.04.21 @ 17:27:08 Sessions 1 Manual Loads 0 Difficulty Rogue Special Mode None Game No. 72 Rogue 72 Adventurer 0 Explorer 0 Win Type - Total 0 Types 0/0/0/0/0/0/0/0/0 Lore% 31 Gallery% 49 Achievement% 32 Wizard Run 0 Options --------- Layout 0 ASCII 0 Keyboard 0 Movement Mouse Keybinds 0 Fullscreen 2 Font 24/Smallcaps Map View 183x50 Zoom Use 0% Tactical HUD 1 Map Filters NONE Filters NONE Steam 0 RUN: cb022894-232f-46b7-bf7b-0fd5126a9f6d